[Event "Titled Tuesday Blitz November 29 Early 2022"]
[White "Hoffmann, Asa"]
[Black "Ibarra Jerez, Jose Carlos"]
[WhiteFideId "2001470"]
[BlackFideId "2226332"]
[WhiteElo "2117"]
[BlackElo "2638"]
[Result "0-1"]
[Round "05"]
[TimeControl "180+1"]
[Date "2022.11.30"]
[WhiteClock "0:00:52"]
[BlackClock "0:01:27"]

1. d4 {[%clk 0:02:52]}  Nf6 {[%clk 0:02:59]} 2. Bg5 {[%clk 0:02:51]}  d5 {[%clk 0:02:59]} 3. Nd2 {[%clk 0:02:51]}  c5 {[%clk 0:02:58]} 4. e3 {[%clk 0:02:50]}  Nc6 {[%clk 0:02:58]} 5. c3 {[%clk 0:02:50]}  e5 {[%clk 0:02:58]} 6. Bb5 {[%clk 0:02:48]}  Qb6 {[%clk 0:02:50]} 7. Bxc6+ {[%clk 0:02:42]}  bxc6 {[%clk 0:02:51]} 8. dxe5 {[%clk 0:02:42]}  Nd7 {[%clk 0:02:49]} 9. Bf4 {[%clk 0:02:28]}  Qxb2 {[%clk 0:02:41]} 10. Ne2 {[%clk 0:02:27]}  Ba6 {[%clk 0:02:41]} 11. O-O {[%clk 0:02:20]}  Be7 {[%clk 0:02:36]} 12. a4 {[%clk 0:02:08]}  Qb7 {[%clk 0:02:21]} 13. Rb1 {[%clk 0:02:05]}  Qc8 {[%clk 0:02:21]} 14. c4 {[%clk 0:01:56]}  O-O {[%clk 0:02:18]} 15. Qc2 {[%clk 0:01:51]}  Nb6 {[%clk 0:02:16]} 16. Ng3 {[%clk 0:01:42]}  Nxc4 {[%clk 0:02:14]} 17. Nxc4 {[%clk 0:01:36]}  Bxc4 {[%clk 0:02:14]} 18. Rfc1 {[%clk 0:01:33]}  Qe6 {[%clk 0:02:09]} 19. e4 {[%clk 0:01:24]}  Rab8 {[%clk 0:02:06]} 20. exd5 {[%clk 0:01:15]}  cxd5 {[%clk 0:02:00]} 21. Nf5 {[%clk 0:01:13]}  Rb4 {[%clk 0:01:45]} 22. Nxe7+ {[%clk 0:01:04]}  Qxe7 {[%clk 0:01:45]} 23. Be3 {[%clk 0:01:04]}  Rc8 {[%clk 0:01:38]} 24. Rxb4 {[%clk 0:00:58]}  cxb4 {[%clk 0:01:38]} 25. Bd4 {[%clk 0:00:58]}  a5 {[%clk 0:01:31]} 26. Qb2 {[%clk 0:00:55]}  Qe6 {[%clk 0:01:31]} 27. h3 {[%clk 0:00:55]}  h6 {[%clk 0:01:30]} 28. Qc3 {[%clk 0:00:52]}  bxc3 {[%clk 0:01:27]} 0-1


[Site "https://www.chess.com"]

[Event "Titled Tuesday Blitz November 29 Early 2022"]
[White "Hovhannisyan, Robert"]
[Black "Megalios, Konstantinos"]
[WhiteFideId "13302507"]
[BlackFideId "4238044"]
[WhiteElo "2570"]
[BlackElo "2277"]
[Result "1/2-1/2"]
[Round "05"]
[TimeControl "180+1"]
[Date "2022.11.30"]
[WhiteClock "0:00:08"]
[BlackClock "0:00:07"]

1. e4 {[%clk 0:03:00]}  c5 {[%clk 0:02:51]} 2. Nf3 {[%clk 0:03:00]}  Nc6 {[%clk 0:02:52]} 3. d4 {[%clk 0:02:59]}  cxd4 {[%clk 0:02:53]} 4. Nxd4 {[%clk 0:02:59]}  e5 {[%clk 0:02:53]} 5. Nb5 {[%clk 0:02:59]}  d6 {[%clk 0:02:53]} 6. N1c3 {[%clk 0:02:58]}  a6 {[%clk 0:02:51]} 7. Na3 {[%clk 0:02:58]}  Be7 {[%clk 0:02:48]} 8. Be3 {[%clk 0:02:56]}  Be6 {[%clk 0:02:06]} 9. Nc4 {[%clk 0:02:53]}  Nf6 {[%clk 0:01:44]} 10. Nb6 {[%clk 0:02:47]}  Rb8 {[%clk 0:01:44]} 11. Nbd5 {[%clk 0:02:43]}  O-O {[%clk 0:01:39]} 12. Be2 {[%clk 0:02:42]}  Nd7 {[%clk 0:01:27]} 13. O-O {[%clk 0:02:33]}  Bg5 {[%clk 0:01:27]} 14. Bg4 {[%clk 0:02:27]}  Bxe3 {[%clk 0:01:25]} 15. Nxe3 {[%clk 0:02:27]}  Nf6 {[%clk 0:01:17]} 16. h3 {[%clk 0:02:14]}  Nd4 {[%clk 0:01:09]} 17. Qd3 {[%clk 0:02:02]}  Qd7 {[%clk 0:01:00]} 18. Bxe6 {[%clk 0:02:00]}  fxe6 {[%clk 0:00:59]} 19. Rad1 {[%clk 0:01:56]}  Rbc8 {[%clk 0:00:55]} 20. f3 {[%clk 0:01:49]}  Rc6 {[%clk 0:00:54]} 21. Ne2 {[%clk 0:01:48]}  Nxe2+ {[%clk 0:00:50]} 22. Qxe2 {[%clk 0:01:49]}  Qc7 {[%clk 0:00:45]} 23. c4 {[%clk 0:01:42]}  Qb6 {[%clk 0:00:38]} 24. Qf2 {[%clk 0:01:38]}  Nxe4 {[%clk 0:00:32]} 25. Qe1 {[%clk 0:01:28]}  Ng3 {[%clk 0:00:26]} 26. Qxg3 {[%clk 0:01:28]}  Qxe3+ {[%clk 0:00:27]} 27. Kh1 {[%clk 0:01:20]}  Qf4 {[%clk 0:00:22]} 28. Qxf4 {[%clk 0:01:10]}  Rxf4 {[%clk 0:00:23]} 29. b3 {[%clk 0:01:10]}  b5 {[%clk 0:00:22]} 30. cxb5 {[%clk 0:01:03]}  axb5 {[%clk 0:00:23]} 31. Rc1 {[%clk 0:01:02]}  Rxc1 {[%clk 0:00:23]} 32. Rxc1 {[%clk 0:01:02]}  b4 {[%clk 0:00:23]} 33. Kg1 {[%clk 0:00:57]}  Rd4 {[%clk 0:00:23]} 34. Rc7 {[%clk 0:00:53]}  h5 {[%clk 0:00:22]} 35. Re7 {[%clk 0:00:52]}  Rd2 {[%clk 0:00:17]} 36. h4 {[%clk 0:00:48]}  Rxa2 {[%clk 0:00:15]} 37. Rxe6 {[%clk 0:00:48]}  Rd2 {[%clk 0:00:15]} 38. Re8+ {[%clk 0:00:46]}  Kf7 {[%clk 0:00:15]} 39. Rh8 {[%clk 0:00:46]}  g6 {[%clk 0:00:14]} 40. Rb8 {[%clk 0:00:43]}  Rd4 {[%clk 0:00:13]} 41. g3 {[%clk 0:00:44]}  Ke6 {[%clk 0:00:14]} 42. Kf2 {[%clk 0:00:44]}  Kf5 {[%clk 0:00:12]} 43. Rf8+ {[%clk 0:00:44]}  Ke6 {[%clk 0:00:12]} 44. Rg8 {[%clk 0:00:45]}  Kf6 {[%clk 0:00:13]} 45. Rf8+ {[%clk 0:00:45]}  Ke6 {[%clk 0:00:13]} 46. Rg8 {[%clk 0:00:45]}  Kf7 {[%clk 0:00:13]} 47. Rb8 {[%clk 0:00:45]}  d5 {[%clk 0:00:13]} 48. Ke3 {[%clk 0:00:44]}  Rd1 {[%clk 0:00:12]} 49. Rxb4 {[%clk 0:00:43]}  Ke6 {[%clk 0:00:12]} 50. Rb8 {[%clk 0:00:42]}  Rb1 {[%clk 0:00:11]} 51. f4 {[%clk 0:00:38]}  exf4+ {[%clk 0:00:09]} 52. Kxf4 {[%clk 0:00:37]}  d4 {[%clk 0:00:10]} 53. Ke4 {[%clk 0:00:36]}  Rg1 {[%clk 0:00:10]} 54. Rb6+ {[%clk 0:00:34]}  Kf7 {[%clk 0:00:09]} 55. Kf3 {[%clk 0:00:35]}  d3 {[%clk 0:00:09]} 56. Rd6 {[%clk 0:00:34]}  Rd1 {[%clk 0:00:09]} 57. Ke3 {[%clk 0:00:27]}  Rg1 {[%clk 0:00:09]} 58. Kf4 {[%clk 0:00:27]}  Rd1 {[%clk 0:00:08]} 59. Kg5 {[%clk 0:00:25]}  d2 {[%clk 0:00:07]} 60. Kh6 {[%clk 0:00:10]}  Rg1 {[%clk 0:00:06]} 61. Rxd2 {[%clk 0:00:08]}  Rxg3 {[%clk 0:00:06]} 62. Rb2 {[%clk 0:00:04]}  Rg4 {[%clk 0:00:04]} 63. b4 {[%clk 0:00:04]}  Rxh4 {[%clk 0:00:05]} 64. b5 {[%clk 0:00:05]}  Rd4 {[%clk 0:00:05]} 65. b6 {[%clk 0:00:05]}  Rd8 {[%clk 0:00:05]} 66. b7 {[%clk 0:00:05]}  Rb8 {[%clk 0:00:06]} 67. Rf2+ {[%clk 0:00:05]}  Ke6 {[%clk 0:00:06]} 68. Kxg6 {[%clk 0:00:05]}  Rxb7 {[%clk 0:00:06]} 69. Rf6+ {[%clk 0:00:06]}  Kd7 {[%clk 0:00:06]} 70. Rf7+ {[%clk 0:00:06]}  Kc6 {[%clk 0:00:06]} 71. Rxb7 {[%clk 0:00:07]}  Kxb7 {[%clk 0:00:07]} 72. Kxh5 {[%clk 0:00:08]} 1/2-1/2


[Site "https://www.chess.com"]

[Event "Titled Tuesday Blitz November 29 Early 2022"]
[White "Ilkhomi, Jaloliddin"]
[Black "Jiganchine, Roman"]
[WhiteFideId "14700948"]
[BlackFideId "2603667"]
[WhiteElo "2045"]
[BlackElo "2309"]
[Result "1/2-1/2"]
[Round "05"]
[TimeControl "180+1"]
[Date "2022.11.30"]
[WhiteClock "0:01:24"]
[BlackClock "0:02:10"]

1. d4 {[%clk 0:03:00]}  d5 {[%clk 0:02:57]} 2. Bf4 {[%clk 0:02:59]}  Nf6 {[%clk 0:02:55]} 3. e3 {[%clk 0:02:59]}  e6 {[%clk 0:02:52]} 4. Nd2 {[%clk 0:02:59]}  c5 {[%clk 0:02:52]} 5. Ngf3 {[%clk 0:02:58]}  Nc6 {[%clk 0:02:52]} 6. c3 {[%clk 0:02:58]}  Bd6 {[%clk 0:02:51]} 7. Bg3 {[%clk 0:02:58]}  O-O {[%clk 0:02:51]} 8. Bd3 {[%clk 0:02:58]}  Qe7 {[%clk 0:02:51]} 9. Ne5 {[%clk 0:02:58]}  Nd7 {[%clk 0:02:46]} 10. Nxd7 {[%clk 0:02:55]}  Qxd7 {[%clk 0:02:45]} 11. Bxd6 {[%clk 0:02:55]}  Qxd6 {[%clk 0:02:43]} 12. dxc5 {[%clk 0:02:56]}  Qxc5 {[%clk 0:02:39]} 13. Bxh7+ {[%clk 0:02:56]}  Kxh7 {[%clk 0:02:36]} 14. Qh5+ {[%clk 0:02:57]}  Kg8 {[%clk 0:02:32]} 15. Ne4 {[%clk 0:02:57]}  g6 {[%clk 0:02:28]} 16. Qg5 {[%clk 0:02:40]}  Qe7 {[%clk 0:02:20]} 17. Nf6+ {[%clk 0:02:38]}  Kg7 {[%clk 0:02:16]} 18. Nh5+ {[%clk 0:02:36]}  Kg8 {[%clk 0:02:12]} 19. Nf6+ {[%clk 0:02:23]}  Kg7 {[%clk 0:02:12]} 20. Nh5+ {[%clk 0:01:25]}  Kh7 {[%clk 0:02:11]} 21. Nf6+ {[%clk 0:01:24]}  Kg7 {[%clk 0:02:10]} 1/2-1/2


[Site "https://www.chess.com"]

[Event "Titled Tuesday Blitz November 29 Early 2022"]
[White "Indjic, Aleksandar"]
[Black "Kleiman, Jake"]
[WhiteFideId "911925"]
[BlackFideId "2020041"]
[WhiteElo "2592"]
[BlackElo "2629"]
[Result "1-0"]
[Round "05"]
[TimeControl "180+1"]
[Date "2022.11.30"]
[WhiteClock "0:00:16"]
[BlackClock "0:00:02"]

1. d4 {[%clk 0:03:00]}  Nf6 {[%clk 0:02:59]} 2. Nc3 {[%clk 0:03:00]}  d5 {[%clk 0:02:59]} 3. Bf4 {[%clk 0:03:01]}  e6 {[%clk 0:02:57]} 4. Nb5 {[%clk 0:02:56]}  Bd6 {[%clk 0:02:54]} 5. Nxd6+ {[%clk 0:02:52]}  cxd6 {[%clk 0:02:55]} 6. e3 {[%clk 0:02:52]}  O-O {[%clk 0:02:54]} 7. h3 {[%clk 0:02:52]}  Nc6 {[%clk 0:02:54]} 8. c3 {[%clk 0:02:51]}  h6 {[%clk 0:02:52]} 9. Bd3 {[%clk 0:02:51]}  e5 {[%clk 0:02:53]} 10. Bh2 {[%clk 0:02:50]}  Re8 {[%clk 0:02:53]} 11. Ne2 {[%clk 0:02:49]}  Be6 {[%clk 0:02:49]} 12. Rc1 {[%clk 0:02:47]}  Qd7 {[%clk 0:02:50]} 13. Bb1 {[%clk 0:02:43]}  Bf5 {[%clk 0:02:48]} 14. O-O {[%clk 0:02:40]}  Bxb1 {[%clk 0:02:45]} 15. Rxb1 {[%clk 0:02:41]}  Rac8 {[%clk 0:02:44]} 16. Rc1 {[%clk 0:02:40]}  a6 {[%clk 0:02:44]} 17. Qd3 {[%clk 0:02:40]}  b5 {[%clk 0:02:39]} 18. b3 {[%clk 0:02:39]}  Qe6 {[%clk 0:02:37]} 19. Rc2 {[%clk 0:02:38]}  Re7 {[%clk 0:02:36]} 20. Rfc1 {[%clk 0:02:37]}  Rec7 {[%clk 0:02:36]} 21. a3 {[%clk 0:02:11]}  Na5 {[%clk 0:02:33]} 22. Rb2 {[%clk 0:02:11]}  Kf8 {[%clk 0:02:21]} 23. Rd1 {[%clk 0:01:51]}  Kg8 {[%clk 0:02:18]} 24. Bg3 {[%clk 0:01:38]}  Ne4 {[%clk 0:02:10]} 25. dxe5 {[%clk 0:01:37]}  dxe5 {[%clk 0:02:05]} 26. Qxd5 {[%clk 0:01:36]}  Qxd5 {[%clk 0:02:04]} 27. Rxd5 {[%clk 0:01:36]}  Nxc3 {[%clk 0:01:39]} 28. Nxc3 {[%clk 0:01:33]}  Rxc3 {[%clk 0:01:40]} 29. a4 {[%clk 0:01:33]}  Rxb3 {[%clk 0:01:24]} 30. Rxb3 {[%clk 0:01:32]}  Nxb3 {[%clk 0:01:25]} 31. axb5 {[%clk 0:01:32]}  axb5 {[%clk 0:01:25]} 32. Rxb5 {[%clk 0:01:32]}  Nd2 {[%clk 0:01:16]} 33. h4 {[%clk 0:01:17]}  f6 {[%clk 0:01:12]} 34. Rd5 {[%clk 0:01:15]}  Ne4 {[%clk 0:01:08]} 35. Kh2 {[%clk 0:01:15]}  Rc2 {[%clk 0:01:00]} 36. f3 {[%clk 0:01:14]}  Nd2 {[%clk 0:00:49]} 37. Kh3 {[%clk 0:01:14]}  Nf1 {[%clk 0:00:49]} 38. Rd3 {[%clk 0:01:00]}  Re2 {[%clk 0:00:49]} 39. e4 {[%clk 0:00:59]}  Ne3 {[%clk 0:00:49]} 40. Bf2 {[%clk 0:00:55]}  Nc4 {[%clk 0:00:32]} 41. Rd8+ {[%clk 0:00:50]}  Kh7 {[%clk 0:00:32]} 42. Bc5 {[%clk 0:00:50]}  h5 {[%clk 0:00:25]} 43. Rd7 {[%clk 0:00:49]}  Kg8 {[%clk 0:00:25]} 44. Rd8+ {[%clk 0:00:48]}  Kf7 {[%clk 0:00:25]} 45. Rf8+ {[%clk 0:00:43]}  Kg6 {[%clk 0:00:25]} 46. Rc8 {[%clk 0:00:40]}  Nd2 {[%clk 0:00:21]} 47. Rc7 {[%clk 0:00:35]}  f5 {[%clk 0:00:10]} 48. Rc6+ {[%clk 0:00:29]}  Kh7 {[%clk 0:00:09]} 49. exf5 {[%clk 0:00:29]}  Nb3 {[%clk 0:00:08]} 50. Bb6 {[%clk 0:00:20]}  e4 {[%clk 0:00:07]} 51. Kg3 {[%clk 0:00:18]}  exf3 {[%clk 0:00:04]} 52. gxf3 {[%clk 0:00:18]}  Re5 {[%clk 0:00:05]} 53. Kf4 {[%clk 0:00:18]}  Rb5 {[%clk 0:00:05]} 54. Be3 {[%clk 0:00:17]}  Rb4+ {[%clk 0:00:04]} 55. Kg5 {[%clk 0:00:17]}  Rb5 {[%clk 0:00:03]} 56. Rc7 {[%clk 0:00:17]}  Na5 {[%clk 0:00:03]} 57. Bd4 {[%clk 0:00:17]}  Kh8 {[%clk 0:00:02]} 58. Rxg7 {[%clk 0:00:16]}  Nc6 {[%clk 0:00:02]} 59. Bf6 {[%clk 0:00:16]} 1-0


[Site "https://www.chess.com"]

[Event "Titled Tuesday Blitz November 29 Early 2022"]
[White "Jimenez Almeida, Luis David"]
[Black "Cramling Bellon, Anna"]
[WhiteFideId "22242244"]
[BlackFideId "32009232"]
[WhiteElo "2158"]
[BlackElo "1972"]
[Result "1-0"]
[Round "05"]
[TimeControl "180+1"]
[Date "2022.11.30"]
[WhiteClock "0:00:13"]
[BlackClock "0:00:02"]

1. e4 {[%clk 0:02:56]}  c5 {[%clk 0:02:55]} 2. Nc3 {[%clk 0:02:54]}  Nc6 {[%clk 0:02:50]} 3. g3 {[%clk 0:02:52]}  g6 {[%clk 0:02:46]} 4. Bg2 {[%clk 0:02:51]}  Bg7 {[%clk 0:02:46]} 5. d3 {[%clk 0:02:50]}  e5 {[%clk 0:02:46]} 6. Be3 {[%clk 0:02:49]}  d6 {[%clk 0:02:46]} 7. Qd2 {[%clk 0:02:47]}  Nge7 {[%clk 0:02:45]} 8. Nge2 {[%clk 0:02:46]}  O-O {[%clk 0:02:45]} 9. Nd5 {[%clk 0:02:37]}  Nxd5 {[%clk 0:02:22]} 10. exd5 {[%clk 0:02:38]}  Nd4 {[%clk 0:02:22]} 11. c3 {[%clk 0:02:35]}  Bh3 {[%clk 0:01:50]} 12. O-O {[%clk 0:02:28]}  Nxe2+ {[%clk 0:01:37]} 13. Qxe2 {[%clk 0:02:27]}  Bxg2 {[%clk 0:01:37]} 14. Kxg2 {[%clk 0:02:28]}  f5 {[%clk 0:01:36]} 15. f4 {[%clk 0:02:27]}  exf4 {[%clk 0:01:21]} 16. Bxf4 {[%clk 0:02:26]}  Re8 {[%clk 0:01:21]} 17. Qd2 {[%clk 0:02:26]}  Qe7 {[%clk 0:01:09]} 18. Rae1 {[%clk 0:02:22]}  Qf7 {[%clk 0:01:10]} 19. c4 {[%clk 0:02:19]}  Qd7 {[%clk 0:00:45]} 20. b4 {[%clk 0:02:14]}  b6 {[%clk 0:00:37]} 21. h4 {[%clk 0:01:58]}  a5 {[%clk 0:00:17]} 22. bxc5 {[%clk 0:01:42]}  bxc5 {[%clk 0:00:17]} 23. Rb1 {[%clk 0:01:27]}  Rab8 {[%clk 0:00:16]} 24. Qxa5 {[%clk 0:01:22]}  Rxb1 {[%clk 0:00:08]} 25. Rxb1 {[%clk 0:01:20]}  Re2+ {[%clk 0:00:08]} 26. Kf1 {[%clk 0:01:14]}  Qe7 {[%clk 0:00:05]} 27. Rb8+ {[%clk 0:01:03]}  Kf7 {[%clk 0:00:06]} 28. Ra8 {[%clk 0:00:47]}  Bd4 {[%clk 0:00:03]} 29. Be3 {[%clk 0:00:13]}  Rxe3 {[%clk 0:00:02]} 30. Ra7 {[%clk 0:00:12]}  Rf3+ {[%clk 0:00:02]} 31. Kg2 {[%clk 0:00:12]}  Rf2+ {[%clk 0:00:03]} 32. Kh3 {[%clk 0:00:12]}  Qxa7 {[%clk 0:00:02]} 33. Qxa7+ {[%clk 0:00:12]}  Kf6 {[%clk 0:00:03]} 34. Qxh7 {[%clk 0:00:11]}  f4 {[%clk 0:00:02]} 35. gxf4 {[%clk 0:00:11]}  Rf3+ {[%clk 0:00:02]} 36. Kg4 {[%clk 0:00:11]}  Rxd3 {[%clk 0:00:03]} 37. Qh8+ {[%clk 0:00:11]}  Kf7 {[%clk 0:00:03]} 38. Qh7+ {[%clk 0:00:11]}  Kf8 {[%clk 0:00:03]} 39. Qd7 {[%clk 0:00:11]}  Rd1 {[%clk 0:00:03]} 40. Qxd6+ {[%clk 0:00:11]}  Kg7 {[%clk 0:00:03]} 41. Qe7+ {[%clk 0:00:11]}  Kh6 {[%clk 0:00:03]} 42. d6 {[%clk 0:00:12]}  Rg1+ {[%clk 0:00:03]} 43. Kf3 {[%clk 0:00:12]}  Rf1+ {[%clk 0:00:03]} 44. Kg2 {[%clk 0:00:13]}  Rg1+ {[%clk 0:00:03]} 45. Kh2 {[%clk 0:00:13]}  Rf1 {[%clk 0:00:02]} 46. d7 {[%clk 0:00:13]}  Rf2+ {[%clk 0:00:02]} 47. Kg3 {[%clk 0:00:13]} 1-0


[Site "https://www.chess.com"]

[Event "Titled Tuesday Blitz November 29 Early 2022"]
[White "Jimenez, Joaquin"]
[Black "Fabris, Alberto"]
[WhiteFideId "109860"]
[BlackFideId "801348"]
[WhiteElo "2163"]
[BlackElo "2145"]
[Result "1-0"]
[Round "05"]
[TimeControl "180+1"]
[Date "2022.11.30"]
[WhiteClock "0:01:36"]
[BlackClock "0:01:30"]

1. c4 {[%clk 0:03:00]}  e5 {[%clk 0:02:59]} 2. Nc3 {[%clk 0:03:00]}  Nf6 {[%clk 0:02:59]} 3. g3 {[%clk 0:02:58]}  Bb4 {[%clk 0:02:59]} 4. Bg2 {[%clk 0:02:58]}  O-O {[%clk 0:02:59]} 5. e3 {[%clk 0:02:59]}  d6 {[%clk 0:02:58]} 6. Nge2 {[%clk 0:02:59]}  c6 {[%clk 0:02:57]} 7. O-O {[%clk 0:02:57]}  Bf5 {[%clk 0:02:54]} 8. a3 {[%clk 0:02:56]}  Ba5 {[%clk 0:02:53]} 9. b4 {[%clk 0:02:55]}  Bc7 {[%clk 0:02:53]} 10. Bb2 {[%clk 0:02:52]}  d5 {[%clk 0:02:44]} 11. cxd5 {[%clk 0:02:48]}  cxd5 {[%clk 0:02:45]} 12. d4 {[%clk 0:02:48]}  Nc6 {[%clk 0:02:40]} 13. Nb5 {[%clk 0:02:45]}  exd4 {[%clk 0:02:37]} 14. Nxc7 {[%clk 0:02:42]}  Qxc7 {[%clk 0:02:36]} 15. Nxd4 {[%clk 0:02:42]}  Be4 {[%clk 0:02:31]} 16. Rc1 {[%clk 0:02:39]}  Bxg2 {[%clk 0:02:25]} 17. Kxg2 {[%clk 0:02:39]}  Qd6 {[%clk 0:02:19]} 18. Qf3 {[%clk 0:02:13]}  Ne4 {[%clk 0:02:13]} 19. Nf5 {[%clk 0:02:02]}  Qd7 {[%clk 0:01:48]} 20. Rfd1 {[%clk 0:01:54]}  Rad8 {[%clk 0:01:36]} 21. Bxg7 {[%clk 0:01:45]}  Rfe8 {[%clk 0:01:34]} 22. Qg4 {[%clk 0:01:38]}  Ne7 {[%clk 0:01:30]} 23. Nh6# {[%clk 0:01:36]} 1-0


[Site "https://www.chess.com"]

[Event "Titled Tuesday Blitz November 29 Early 2022"]
[White "Kamsky, Gata"]
[Black "Ingebretsen, Jens E"]
[WhiteFideId "2000024"]
[BlackFideId "1522965"]
[WhiteElo "2666"]
[BlackElo "2213"]
[Result "1-0"]
[Round "05"]
[TimeControl "180+1"]
[Date "2022.11.30"]
[WhiteClock "0:00:42"]
[BlackClock "0:00:05"]

1. d4 {[%clk 0:03:00]}  Nf6 {[%clk 0:03:00]} 2. Bf4 {[%clk 0:02:58]}  g6 {[%clk 0:02:58]} 3. c3 {[%clk 0:02:57]}  Bg7 {[%clk 0:02:59]} 4. Nf3 {[%clk 0:02:55]}  O-O {[%clk 0:02:59]} 5. Nbd2 {[%clk 0:02:50]}  d6 {[%clk 0:02:53]} 6. e4 {[%clk 0:02:48]}  Re8 {[%clk 0:02:53]} 7. h3 {[%clk 0:02:47]}  e5 {[%clk 0:02:49]} 8. dxe5 {[%clk 0:02:40]}  dxe5 {[%clk 0:02:48]} 9. Bxe5 {[%clk 0:02:38]}  Nc6 {[%clk 0:02:06]} 10. Bxf6 {[%clk 0:02:38]}  Qxf6 {[%clk 0:02:07]} 11. Be2 {[%clk 0:02:33]}  Be6 {[%clk 0:01:53]} 12. O-O {[%clk 0:02:32]}  Rad8 {[%clk 0:01:54]} 13. Qc2 {[%clk 0:02:29]}  Qf4 {[%clk 0:01:45]} 14. Rad1 {[%clk 0:02:11]}  Rd7 {[%clk 0:01:01]} 15. Nb3 {[%clk 0:01:51]}  Rxd1 {[%clk 0:00:57]} 16. Rxd1 {[%clk 0:01:50]}  Ne5 {[%clk 0:00:42]} 17. Nbd4 {[%clk 0:01:41]}  Nxf3+ {[%clk 0:00:38]} 18. Bxf3 {[%clk 0:01:38]}  Bxh3 {[%clk 0:00:26]} 19. Qa4 {[%clk 0:01:20]}  c6 {[%clk 0:00:24]} 20. Qxa7 {[%clk 0:01:12]}  Bg4 {[%clk 0:00:20]} 21. Ne2 {[%clk 0:01:08]}  Qg5 {[%clk 0:00:20]} 22. Bxg4 {[%clk 0:01:08]}  Qxg4 {[%clk 0:00:21]} 23. f3 {[%clk 0:01:09]}  Qc8 {[%clk 0:00:20]} 24. Kf1 {[%clk 0:01:04]}  h5 {[%clk 0:00:21]} 25. Qf2 {[%clk 0:01:00]}  Be5 {[%clk 0:00:20]} 26. a3 {[%clk 0:00:56]}  Qc7 {[%clk 0:00:19]} 27. Rd2 {[%clk 0:00:53]}  c5 {[%clk 0:00:20]} 28. Rd5 {[%clk 0:00:52]}  b6 {[%clk 0:00:20]} 29. Qe3 {[%clk 0:00:50]}  h4 {[%clk 0:00:18]} 30. Qg5 {[%clk 0:00:49]}  h3 {[%clk 0:00:14]} 31. gxh3 {[%clk 0:00:49]}  Qc8 {[%clk 0:00:14]} 32. Kg2 {[%clk 0:00:48]}  Bg7 {[%clk 0:00:13]} 33. h4 {[%clk 0:00:47]}  Qa6 {[%clk 0:00:10]} 34. Ng3 {[%clk 0:00:46]}  Qc4 {[%clk 0:00:09]} 35. h5 {[%clk 0:00:45]}  Qb3 {[%clk 0:00:05]} 36. Rd2 {[%clk 0:00:44]}  gxh5 {[%clk 0:00:05]} 37. Nxh5 {[%clk 0:00:42]} 1-0


[Site "https://www.chess.com"]

[Event "Titled Tuesday Blitz November 29 Early 2022"]
[White "Kiseljova, Marya"]
[Black "Rose, Felix"]
[WhiteFideId "4155009"]
[BlackFideId "5105722"]
[WhiteElo "1907"]
[BlackElo "2039"]
[Result "1-0"]
[Round "05"]
[TimeControl "180+1"]
[Date "2022.11.30"]
[WhiteClock "0:00:17"]
[BlackClock "0:00:14"]

1. d4 {[%clk 0:03:00]}  d5 {[%clk 0:02:59]} 2. c4 {[%clk 0:02:59]}  e6 {[%clk 0:02:59]} 3. Nf3 {[%clk 0:02:58]}  Nf6 {[%clk 0:02:59]} 4. g3 {[%clk 0:02:58]}  dxc4 {[%clk 0:02:59]} 5. Bg2 {[%clk 0:02:57]}  a6 {[%clk 0:03:00]} 6. O-O {[%clk 0:02:53]}  Nc6 {[%clk 0:03:00]} 7. e3 {[%clk 0:02:25]}  Rb8 {[%clk 0:02:59]} 8. Nfd2 {[%clk 0:02:20]}  Na5 {[%clk 0:02:48]} 9. Qa4+ {[%clk 0:02:16]}  c6 {[%clk 0:02:48]} 10. b4 {[%clk 0:01:56]}  cxb3 {[%clk 0:02:29]} 11. axb3 {[%clk 0:01:55]}  b6 {[%clk 0:02:25]} 12. b4 {[%clk 0:01:35]}  Bd7 {[%clk 0:01:29]} 13. bxa5 {[%clk 0:01:34]}  b5 {[%clk 0:01:29]} 14. Qc2 {[%clk 0:01:29]}  Qc7 {[%clk 0:01:27]} 15. Ba3 {[%clk 0:01:21]}  b4 {[%clk 0:01:20]} 16. Bb2 {[%clk 0:01:19]}  Be7 {[%clk 0:01:16]} 17. Nc4 {[%clk 0:01:17]}  O-O {[%clk 0:01:12]} 18. Nbd2 {[%clk 0:01:16]}  Nd5 {[%clk 0:01:03]} 19. Rfc1 {[%clk 0:00:54]}  Rfd8 {[%clk 0:00:53]} 20. Ne5 {[%clk 0:00:52]}  Rdc8 {[%clk 0:00:31]} 21. Bxd5 {[%clk 0:00:38]}  exd5 {[%clk 0:00:31]} 22. Nxd7 {[%clk 0:00:37]}  Qxd7 {[%clk 0:00:31]} 23. Nb3 {[%clk 0:00:37]}  Rb5 {[%clk 0:00:24]} 24. Nc5 {[%clk 0:00:37]}  Qa7 {[%clk 0:00:23]} 25. Qf5 {[%clk 0:00:31]}  Rf8 {[%clk 0:00:17]} 26. Nd7 {[%clk 0:00:21]}  Rd8 {[%clk 0:00:17]} 27. Ne5 {[%clk 0:00:21]}  Bf8 {[%clk 0:00:14]} 28. Nxc6 {[%clk 0:00:20]}  Qd7 {[%clk 0:00:12]} 29. Qxd7 {[%clk 0:00:15]}  Rxd7 {[%clk 0:00:13]} 30. Ne5 {[%clk 0:00:14]}  Rd8 {[%clk 0:00:12]} 31. Rc6 {[%clk 0:00:14]}  f6 {[%clk 0:00:13]} 32. Nd3 {[%clk 0:00:14]}  Ra8 {[%clk 0:00:13]} 33. Nc5 {[%clk 0:00:13]}  Be7 {[%clk 0:00:14]} 34. Rxa6 {[%clk 0:00:11]}  Rxa6 {[%clk 0:00:13]} 35. Nxa6 {[%clk 0:00:11]}  Bd8 {[%clk 0:00:14]} 36. Nc5 {[%clk 0:00:11]}  Bxa5 {[%clk 0:00:14]} 37. Nb3 {[%clk 0:00:11]}  Bb6 {[%clk 0:00:14]} 38. Ra8+ {[%clk 0:00:12]}  Kf7 {[%clk 0:00:15]} 39. Kf1 {[%clk 0:00:11]}  Bc7 {[%clk 0:00:15]} 40. Ra7 {[%clk 0:00:10]}  Kg6 {[%clk 0:00:12]} 41. Rxc7 {[%clk 0:00:10]}  Rb8 {[%clk 0:00:13]} 42. Rc5 {[%clk 0:00:10]}  Ra8 {[%clk 0:00:13]} 43. Ke2 {[%clk 0:00:09]}  Ra2 {[%clk 0:00:14]} 44. Rc2 {[%clk 0:00:10]}  h5 {[%clk 0:00:14]} 45. Kd3 {[%clk 0:00:10]}  Kf5 {[%clk 0:00:14]} 46. h4 {[%clk 0:00:10]}  Kg4 {[%clk 0:00:15]} 47. Nc1 {[%clk 0:00:10]}  Ra8 {[%clk 0:00:13]} 48. Ke2 {[%clk 0:00:09]}  b3 {[%clk 0:00:13]} 49. Nxb3 {[%clk 0:00:09]}  Rb8 {[%clk 0:00:13]} 50. Nc5 {[%clk 0:00:09]}  Kh3 {[%clk 0:00:13]} 51. Nd3 {[%clk 0:00:08]}  Kg2 {[%clk 0:00:13]} 52. Nf4+ {[%clk 0:00:08]}  Kh2 {[%clk 0:00:13]} 53. Nxh5 {[%clk 0:00:09]}  g6 {[%clk 0:00:13]} 54. Nf4 {[%clk 0:00:09]}  g5 {[%clk 0:00:12]} 55. hxg5 {[%clk 0:00:09]}  fxg5 {[%clk 0:00:13]} 56. Nxd5 {[%clk 0:00:10]}  Rf8 {[%clk 0:00:14]} 57. Ne7 {[%clk 0:00:10]}  Kg1 {[%clk 0:00:14]} 58. Kd3 {[%clk 0:00:10]}  Kg2 {[%clk 0:00:15]} 59. Ng6 {[%clk 0:00:10]}  Rf6 {[%clk 0:00:15]} 60. Ne5 {[%clk 0:00:10]}  Rf5 {[%clk 0:00:15]} 61. f4+ {[%clk 0:00:10]}  Kh3 {[%clk 0:00:14]} 62. fxg5 {[%clk 0:00:11]}  Rxg5 {[%clk 0:00:14]} 63. d5 {[%clk 0:00:10]}  Kxg3 {[%clk 0:00:14]} 64. d6 {[%clk 0:00:10]}  Rg8 {[%clk 0:00:14]} 65. d7 {[%clk 0:00:10]}  Rd8 {[%clk 0:00:14]} 66. Rc8 {[%clk 0:00:11]}  Rxd7+ {[%clk 0:00:13]} 67. Nxd7 {[%clk 0:00:10]}  Kf2 {[%clk 0:00:13]} 68. e4 {[%clk 0:00:11]}  Kf3 {[%clk 0:00:14]} 69. e5 {[%clk 0:00:12]}  Kf4 {[%clk 0:00:14]} 70. e6 {[%clk 0:00:13]}  Kf3 {[%clk 0:00:12]} 71. e7 {[%clk 0:00:14]}  Kf2 {[%clk 0:00:12]} 72. e8=Q {[%clk 0:00:15]}  Kf3 {[%clk 0:00:13]} 73. Qe7 {[%clk 0:00:15]}  Kf4 {[%clk 0:00:13]} 74. Rf8+ {[%clk 0:00:15]}  Kg4 {[%clk 0:00:13]} 75. Qg7+ {[%clk 0:00:16]}  Kh3 {[%clk 0:00:14]} 76. Rh8# {[%clk 0:00:17]} 1-0


[Site "https://www.chess.com"]